fUST/lending_fUST_20240919
["ID","MTS","AMOUNT","RATE_DAILY","PERIOD"]
[338579816,1726745449344,-902.76,0.00016712,2]
[338579817,1726745449353,-500.0,0.00016712,2]
[338579818,1726745449363,-500.0,0.00016712,2]
[338579819,1726745449373,-798.22,0.00016712,2]
[338579820,1726745449382,-2207.32,0.00016712,2]
[338579821,1726745449393,-2283.98,0.00016712,2]
[338579822,1726745449402,-911.72,0.00016712,2]
[338579823,1726745449412,-500.0,0.00016712,2]
[338579824,1726745449422,-500.0,0.00016712,2]
[338579825,1726745449433,-914.97,0.00016712,2]
[338579826,1726745449443,-696.45,0.00016712,2]
[338579827,1726745449453,-500.0,0.00016712,2]
[338579828,1726745449464,-863.47,0.00016712,2]
[338579829,1726745449474,-500.0,0.00016712,2]
[338579830,1726745449484,-500.0,0.00016712,2]
[338579831,1726745449493,-500.0,0.00016712,2]
[338579832,1726745449503,-500.0,0.00016712,2]
[338579833,1726745449512,-683.64,0.00016712,2]
[338579834,1726745449523,-500.0,0.00016712,2]
[338579835,1726745449535,-835.17,0.00016712,2]
[338579836,1726745449546,-500.0,0.00016712,2]
[338579837,1726745449558,-500.0,0.00016712,2]
[338579838,1726745449569,-907.83,0.00016712,2]
[338579839,1726745449579,-500.0,0.00016712,2]
[338579840,1726745449588,-500.0,0.00016712,2]
[338579841,1726745449708,-151.0,0.00016712,2]
[338579842,1726745449718,-500.0,0.00016712,2]
[338579843,1726745449727,-508.83,0.00016712,2]
[338579844,1726745449737,-500.0,0.00016712,2]
[338579845,1726745449747,-1021.41,0.00016712,2]
[338579846,1726745449757,-500.0,0.00016712,2]
[338579847,1726745449767,-500.0,0.00016712,2]
[338579848,1726745449776,-151.0,0.00016712,2]
[338579849,1726745449785,-525.13,0.00016712,2]
[338579850,1726745449795,-500.0,0.00016712,2]
[338579851,1726745449805,-500.0,0.00016712,2]
[338579852,1726745449814,-151.0,0.00016712,2]
[338579853,1726745449824,-500.0,0.00016712,2]
[338579854,1726745449834,-530.54,0.00016712,2]
[338579855,1726745449843,-929.36,0.00016712,2]
[338579856,1726745449853,-655.79,0.00016712,2]
[338579857,1726745449862,-500.0,0.00016712,2]
[338579858,1726745449871,-556.102585,0.00016712,2]
[338579859,1726745449882,-312.23486903,0.00016712,2]
[338579860,1726745449894,-556.102585,0.00016712,2]
[338579861,1726745449903,-500.0,0.00016712,2]
[338579862,1726745449913,-500.0,0.00016712,2]
[338579863,1726745449925,-500.0,0.00016712,2]
[338579864,1726745449937,-804.031865,0.00016712,2]
[338579865,1726745449947,-500.0,0.00016712,2]
[338579866,1726745449958,-1203.66,0.00016712,2]
[338579867,1726745449969,-500.0,0.00016712,2]
[338579868,1726745449979,-804.031865,0.00016712,2]
[338579869,1726745449989,-500.0,0.00016712,2]
[338579870,1726745449999,-500.0,0.00016712,2]
[338579871,1726745450009,-728.59,0.00016712,2]
[338579872,1726745450018,-500.0,0.00016712,2]
[338579873,1726745450027,-800.808666,0.00016712,2]
[338579874,1726745450036,-500.0,0.00016712,2]
[338579875,1726745450046,-500.0,0.00016712,2]
[338579876,1726745450056,-500.0,0.00016712,2]
[338579877,1726745450066,-1726.45,0.00016712,2]
[338579878,1726745450078,-716.43,0.00016712,2]
[338579879,1726745450087,-800.808666,0.00016712,2]
[338579880,1726745450097,-500.0,0.00016712,2]
[338579881,1726745450107,-660.93,0.00016712,2]
[338579882,1726745450116,-500.0,0.00016712,2]
[338579883,1726745450126,-500.0,0.00016712,2]
[338579884,1726745450136,-151.0,0.00016712,2]
[338579885,1726745450145,-500.0,0.00016712,2]
[338579886,1726745450155,-500.0,0.00016712,2]
[338579887,1726745450164,-1254.1,0.00016712,2]
[338579888,1726745450175,-500.0,0.00016712,2]
[338579889,1726745450186,-2664.97,0.00016712,2]
[338579890,1726745450196,-787.1,0.00016712,2]
[338579891,1726745450205,-253.707808,0.00016712,2]
[338579892,1726745450215,-500.0,0.00016712,2]
[338579893,1726745450224,-500.0,0.00016712,2]
[338579894,1726745450234,-668.97,0.00016712,2]
[338579895,1726745450243,-598.66,0.00016712,2]
[338579896,1726745450253,-327.549987,0.00016712,2]
[338579897,1726745450262,-327.549987,0.00016712,2]
[338579898,1726745450272,-253.707808,0.00016712,2]
[338579899,1726745450282,-509.46868755,0.00016712,2]
[338579900,1726745450291,-500.0,0.00016712,2]
[338579901,1726745450301,-327.549987,0.00016712,2]
[338579902,1726745450310,-327.549987,0.00016712,2]
[338579903,1726745450319,-500.0,0.00016712,2]
[338579904,1726745450329,-500.0,0.00016712,2]
[338579905,1726745450338,-713.08,0.00016712,2]
[338579906,1726745450347,-151.0,0.00016712,2]
[338579907,1726745450356,-151.0,0.00016712,2]
[338579908,1726745450366,-500.0,0.00016712,2]
[338579909,1726745450375,-500.0,0.00016712,2]
[338579910,1726745450385,-500.0,0.00016712,2]
[338579911,1726745450395,-500.50203365,0.00016712,2]
[338579912,1726745450404,-151.0,0.00016712,2]
[338579913,1726745450414,-151.0,0.00016712,2]
[338579914,1726745450423,-1827.31,0.00016712,2]
[338579915,1726745450432,-500.0,0.00016712,2]
[338579916,1726745450442,-1453.15,0.00016712,2]
[338579917,1726745450451,-500.0,0.00016712,2]
[338579918,1726745450461,-500.0,0.00016712,2]
[338579919,1726745450473,-500.0,0.00016712,2]
[338579920,1726745450483,-501.8688841,0.00016712,2]
[338579921,1726745450492,-1475.83,0.00016712,2]
[338579922,1726745450502,-500.0,0.00016712,2]
[338579923,1726745450513,-500.0,0.00016712,2]
[338579924,1726745450523,-2327.77,0.00016712,2]
[338579925,1726745450532,-500.0,0.00016712,2]
[338579926,1726745450543,-500.0,0.00016712,2]
[338579927,1726745450552,-500.0,0.00016712,2]
[338579928,1726745450561,-813.2,0.00016712,2]
[338579929,1726745450571,-500.0,0.00016712,2]
[338579930,1726745450582,-842.57,0.00016712,2]
[338579931,1726745450593,-1835.05,0.00016712,2]
[338579932,1726745450605,-433.15,0.00016712,2]
[338579933,1726745450615,-500.0,0.00016712,2]
[338579934,1726745450626,-151.0,0.00016712,2]
[338579935,1726745450637,-500.0,0.00016712,2]
[338579936,1726745450647,-151.0,0.00016712,2]
[338579937,1726745450659,-500.0,0.00016712,2]
[338579938,1726745450669,-500.0,0.00016712,2]
[338579939,1726745450678,-151.0,0.00016712,2]
[338579940,1726745450688,-244.214896,0.00016712,2]
[338579941,1726745450698,-1094.22,0.00016712,2]
[338579942,1726745450708,-614.427804,0.00016712,2]
[338579943,1726745450718,-614.427804,0.00016712,2]
[338579944,1726745450729,-1386.11,0.00016712,2]
[338579945,1726745450741,-500.0,0.00016712,2]
[338579946,1726745450752,-614.427804,0.00016712,2]
[338579947,1726745450762,-614.427804,0.00016712,2]
[338579948,1726745450771,-500.0,0.00016712,2]
[338579949,1726745450781,-500.0,0.00016712,2]
[338579950,1726745450790,-500.0,0.00016712,2]
[338579951,1726745450799,-976.67,0.00016712,2]
[338579952,1726745450809,-500.0,0.00016712,2]
[338579953,1726745450818,-500.0,0.00016712,2]
[338579954,1726745450828,-500.0,0.00016712,2]
[338579955,1726745450837,-500.0,0.00016712,2]
[338579956,1726745450847,-500.0,0.00016712,2]
[338579957,1726745450857,-2178.93,0.00016712,2]
[338579958,1726745450867,-1248.980744,0.00016712,2]
[338579959,1726745450877,-1248.980744,0.00016712,2]
[338579960,1726745450887,-841.22,0.00016712,2]
[338579961,1726745450896,-500.0,0.00016712,2]
[338579962,1726745450906,-1248.980744,0.00016712,2]
[338579963,1726745450915,-1248.980744,0.00016712,2]
[338579964,1726745450924,-500.0,0.00016712,2]
[338579965,1726745450933,-500.0,0.00016712,2]
[338579966,1726745450942,-383.12769975,0.00016712,2]
[338579967,1726745450952,-1419.98,0.00016712,2]
[338579968,1726745450961,-500.0,0.00016712,2]
[338579969,1726745450970,-500.0,0.00016712,2]
[338579970,1726745450979,-501.96747097,0.00016712,2]
[338579971,1726745450989,-7789.48,0.00016712,2]
[338579972,1726745450998,-1079.81,0.00016712,2]
[338579973,1726745451007,-151.0,0.00016712,2]
[338579974,1726745451016,-151.0,0.00016712,2]
[338579975,1726745451026,-500.0,0.00016712,2]
[338579976,1726745451036,-1214.75,0.00016712,2]
[338579977,1726745451045,-500.0,0.00016712,2]
[338579978,1726745451054,-896.34,0.00016712,2]
[338579979,1726745451064,-861.973197,0.00016712,2]
[338579980,1726745451073,-861.973197,0.00016712,2]
[338579981,1726745451082,-151.0,0.00016712,2]
[338579982,1726745451091,-151.0,0.00016712,2]
[338579983,1726745451100,-1612.07,0.00016712,2]
[338579984,1726745451110,-500.0,0.00016712,2]
[338579985,1726745451119,-500.0,0.00016712,2]
[338579986,1726745451128,-600.1,0.00016712,2]
[338579987,1726745451139,-151.0,0.00016712,2]
[338579988,1726745451148,-151.0,0.00016712,2]
[338579989,1726745451158,-2899.512621,0.00016712,2]
[338579990,1726745451167,-2899.512621,0.00016712,2]
[338579991,1726745451177,-627.13,0.00016712,2]
[338579992,1726745451187,-861.973197,0.00016712,2]
[338579993,1726745451196,-861.973197,0.00016712,2]
[338579994,1726745451205,-500.0,0.00016712,2]
[338579995,1726745451215,-500.0,0.00016712,2]
[338579996,1726745451224,-2899.512621,0.00016712,2]
[338579997,1726745451233,-2899.512621,0.00016712,2]
[338579998,1726745451242,-500.0,0.00016712,2]
[338579999,1726745451251,-158.97031663,0.00016712,2]
[338580000,1726745451261,-500.0,0.00016712,2]
[338580001,1726745451270,-630.76,0.00016712,2]
[338580002,1726745451279,-500.0,0.00016712,2]
[338580003,1726745451289,-353.85,0.00016712,2]
[338580004,1726745451298,-779.56,0.00016712,2]
[338580005,1726745451309,-500.0,0.00016712,2]
[338580006,1726745451318,-909.538123,0.00016712,2]
[338580007,1726745451327,-909.538123,0.00016712,2]
[338580008,1726745451337,-1832.39,0.00016712,2]
[338580009,1726745451346,-1110.08,0.00016712,2]
[338580010,1726745451356,-909.538123,0.00016712,2]
[338580011,1726745451365,-909.538123,0.00016712,2]
[338580012,1726745451374,-500.0,0.00016712,2]
[338580013,1726745451383,-500.0,0.00016712,2]
[338580014,1726745451395,-852.45,0.00016712,2]
[338580015,1726745451405,-500.0,0.00016712,2]
[338580016,1726745451414,-500.0,0.00016712,2]
[338580017,1726745451423,-500.0,0.00016712,2]
[338580018,1726745451432,-500.0,0.00016712,2]
[338580019,1726745451442,-1334.66,0.00016712,2]
[338580020,1726745451451,-925.92,0.00016712,2]
[338580021,1726745451461,-1089.03,0.00016712,2]
[338580022,1726745451473,-546.41,0.00016712,2]
[338580023,1726745451482,-500.0,0.00016712,2]
[338580024,1726745451492,-500.0,0.00016712,2]
[338580025,1726745451502,-500.0,0.00016712,2]
[338580026,1726745451511,-500.0,0.00016712,2]
[338580027,1726745451521,-500.0,0.00016712,2]
[338580028,1726745451530,-500.0,0.00016712,2]
[338580029,1726745451539,-500.0,0.00016712,2]
[338580030,1726745451548,-1783.2,0.00016712,2]
[338580031,1726745451558,-500.0,0.00016712,2]
[338580032,1726745451567,-500.0,0.00016712,2]
[338580033,1726745451576,-213.77734259,0.00016712,2]
[338580034,1726745451586,-553.940828,0.00016712,2]
[338580035,1726745451596,-500.0,0.00016712,2]
[338580036,1726745451605,-553.940828,0.00016712,2]
[338580037,1726745451614,-500.0,0.00016712,2]
[338580038,1726745451624,-553.940828,0.00016712,2]
[338580039,1726745451633,-500.0,0.00016712,2]
[338580040,1726745451644,-553.940828,0.00016712,2]
[338580041,1726745451654,-500.0,0.00016712,2]
[338580042,1726745451664,-500.0,0.00016712,2]
[338580043,1726745451673,-606.66,0.00016712,2]
[338580044,1726745451683,-500.0,0.00016712,2]
[338580045,1726745451693,-500.0,0.00016712,2]
[338580046,1726745451703,-965.09,0.00016712,2]
[338580047,1726745451713,-500.75781459,0.00016712,2]
[338580048,1726745451722,-500.0,0.00016712,2]
[338580049,1726745451732,-500.0,0.00016712,2]
[338580050,1726745451742,-170.937162,0.00016712,2]
[338580051,1726745451752,-500.0,0.00016712,2]
[338580052,1726745451761,-532.620686,0.00016712,2]
[338580053,1726745451771,-532.620686,0.00016712,2]
[338580054,1726745451780,-511.19,0.00016712,2]
[338580055,1726745451790,-532.620686,0.00016712,2]
[338580056,1726745451800,-532.620686,0.00016712,2]
[338580057,1726745451810,-500.0,0.00016712,2]
[338580058,1726745451819,-543.49,0.00016712,2]
[338580059,1726745451829,-3975.93,0.00016712,2]
[338580060,1726745451838,-151.0,0.00016712,2]
[338580061,1726745451848,-151.0,0.00016712,2]
[338580062,1726745451858,-500.0,0.00016712,2]
[338580063,1726745451867,-151.0,0.00016712,2]
[338580064,1726745451877,-229.655805,0.00016712,2]
[338580065,1726745451886,-500.0,0.00016712,2]
[338580066,1726745452146,-500.0,0.00016712,2]
[338580067,1726745452162,-500.0,0.00016712,2]
[338580068,1726745452172,-500.0,0.00016712,2]
[338580069,1726745452181,-961.19,0.00016712,2]
[338580070,1726745452192,-500.0,0.00016712,2]
[338580071,1726745452202,-686.28,0.00016712,2]
[338580072,1726745452212,-670.64,0.00016712,2]
[338580073,1726745452222,-503.6,0.00016712,2]
[338580074,1726745452232,-151.0,0.00016712,2]
[338580075,1726745452242,-151.0,0.00016712,2]
[338580076,1726745452251,-500.0,0.00016712,2]
[338580077,1726745452260,-151.0,0.00016712,2]
[338580078,1726745452270,-847.91,0.00016712,2]
[338580079,1726745452280,-1204.43,0.00016712,2]
[338580080,1726745452289,-910.872847,0.00016712,2]
[338580081,1726745452300,-910.872847,0.00016712,2]
[338580082,1726745452310,-500.0,0.00016712,2]
[338580083,1726745452320,-602.3,0.00016712,2]
[338580084,1726745452329,-570.62,0.00016712,2]
[338580085,1726745452339,-910.872847,0.00016712,2]
[338580086,1726745452348,-910.872847,0.00016712,2]
[338580087,1726745452358,-902.69,0.00016712,2]
[338580088,1726745452368,-500.0,0.00016712,2]
[338580089,1726745452378,-1355.041912,0.00016712,2]
[338580090,1726745452387,-1355.041912,0.00016712,2]
[338580091,1726745452396,-500.0,0.00016712,2]
[338580092,1726745452406,-1355.041912,0.00016712,2]
[338580093,1726745452416,-1355.041912,0.00016712,2]
[338580094,1726745452425,-500.0,0.00016712,2]
[338580095,1726745452434,-500.0,0.00016712,2]
[338580096,1726745452444,-183.357962,0.00016712,2]
[338580097,1726745452454,-183.357962,0.00016712,2]
[338580098,1726745452466,-500.0,0.00016712,2]
[338580099,1726745452476,-500.0,0.00016712,2]
[338580100,1726745452485,-500.0,0.00016712,2]
[338580101,1726745452495,-183.357962,0.00016712,2]
[338580102,1726745452506,-183.357962,0.00016712,2]
[338580103,1726745452516,-500.0,0.00016712,2]
[338580104,1726745452526,-500.0,0.00016712,2]
[338580105,1726745452536,-492.74,0.00016712,2]
[338580106,1726745452547,-500.0,0.00016712,2]
[338580107,1726745452556,-500.0,0.00016712,2]
[338580108,1726745452566,-564.57,0.00016712,2]
[338580109,1726745452576,-523.54,0.00016712,2]
[338580110,1726745452586,-500.0,0.00016712,2]
[338580111,1726745452596,-536.2,0.00016712,2]
[338580112,1726745452605,-500.0,0.00016712,2]
[338580113,1726745452616,-1023.18,0.00016712,2]
[338580114,1726745452626,-512.62,0.00016712,2]
[338580115,1726745452635,-2939.861116,0.00016712,2]
[338580116,1726745452657,-2939.861116,0.00016712,2]
[338580117,1726745452666,-500.0,0.00016712,2]
[338580118,1726745452676,-3488.81,0.00016712,2]
[338580119,1726745452686,-590.34850146,0.00016712,2]
[338580120,1726745452695,-2939.861116,0.00016712,2]
[338580121,1726745452705,-2939.861116,0.00016712,2]
[338580122,1726745452716,-500.0,0.00016712,2]
[338580123,1726745452726,-500.0,0.00016712,2]
[338580124,1726745452735,-1006.39,0.00016712,2]
[338580125,1726745452745,-500.0,0.00016712,2]
[338580126,1726745452755,-384.644994,0.00016712,2]
[338580127,1726745452765,-500.0,0.00016712,2]
[338580128,1726745452775,-605.22271873,0.00016712,2]
[338580129,1726745452784,-384.644994,0.00016712,2]
[338580130,1726745452794,-151.0,0.00016712,2]
[338580131,1726745452803,-553.21,0.00016712,2]
[338580132,1726745452812,-500.0,0.00016712,2]
[338580133,1726745452822,-151.0,0.00016712,2]
[338580134,1726745452832,-500.0,0.00016712,2]
[338580135,1726745452842,-384.644994,0.00016712,2]
[338580136,1726745452852,-384.644994,0.00016712,2]
[338580137,1726745452862,-898.1,0.00016712,2]
[338580138,1726745452871,-573.52,0.00016712,2]
[338580139,1726745452880,-500.0,0.00016712,2]
[338580140,1726745452895,-553.849514,0.00016712,2]
[338580141,1726745452904,-553.849514,0.00016712,2]
[338580142,1726745452914,-500.0,0.00016712,2]
[338580143,1726745452924,-500.0,0.00016712,2]
[338580144,1726745452934,-500.0,0.00016712,2]
[338580145,1726745452944,-553.849514,0.00016712,2]
[338580146,1726745452953,-707.745125,0.00016712,2]
[338580147,1726745452963,-707.745125,0.00016712,2]
[338580148,1726745452972,-553.849514,0.00016712,2]
[338580149,1726745452981,-500.0,0.00016712,2]
[338580150,1726745452991,-500.0,0.00016712,2]
[338580151,1726745453001,-150.0,0.00016712,2]
[338580152,1726745453011,-500.0,0.00016712,2]
[338580153,1726745453021,-707.745125,0.00016712,2]
[338580154,1726745453031,-500.0,0.00016712,2]
[338580155,1726745453041,-707.745125,0.00016712,2]
[338580156,1726745453051,-1394.15,0.00016712,2]
[338580157,1726745453061,-500.0,0.00016712,2]
[338580158,1726745453071,-1509.27,0.00016712,2]
[338580159,1726745453080,-529.72,0.00016712,2]
[338580160,1726745453090,-500.32995546,0.00016712,2]
[338580161,1726745453100,-500.0,0.00016712,2]
[338580162,1726745453110,-500.0,0.00016712,2]
[338580163,1726745453120,-3346.909647,0.00016712,2]
[338580164,1726745453130,-3346.909647,0.00016712,2]
[338580165,1726745453140,-500.0,0.00016712,2]
[338580166,1726745453150,-3346.909647,0.00016712,2]
[338580167,1726745453160,-3346.909647,0.00016712,2]
[338580168,1726745453170,-1057.47,0.00016712,2]
[338580169,1726745453180,-500.0,0.00016712,2]
[338580170,1726745453189,-500.0,0.00016712,2]
[338580171,1726745453199,-500.0,0.00016712,2]
[338580172,1726745453208,-842.56,0.00016712,2]
[338580173,1726745453218,-500.0,0.00016712,2]
[338580174,1726745453228,-151.0,0.00016712,2]
[338580175,1726745453237,-151.0,0.00016712,2]
[338580176,1726745453247,-500.0,0.00016712,2]
[338580177,1726745453257,-500.0,0.00016712,2]
[338580178,1726745453266,-500.0,0.00016712,2]
[338580179,1726745453276,-951.2,0.00016712,2]
[338580180,1726745453286,-500.0,0.00016712,2]
[338580181,1726745453295,-500.0,0.00016712,2]
[338580182,1726745453305,-683.25,0.00016712,2]
[338580183,1726745453315,-150.0,0.00016739,2]
[338580184,1726745453325,-150.0,0.00016767,2]
[338580185,1726745453334,-500.0,0.00016773,2]
[338580186,1726745453343,-500.0,0.00016773,2]
[338580187,1726745453352,-500.0,0.00016773,2]
[338580188,1726745453362,-535.37981013,0.00016773,2]
[338580189,1726745453371,-500.0,0.00016773,2]
[338580190,1726745453380,-503.76687854,0.00016773,2]
[338580191,1726745453390,-500.0,0.00016773,2]
[338580192,1726745453400,-150.0,0.00016794,2]
[338580193,1726745453409,-153.0,0.000168,2]
[338580194,1726745453419,-219.42990979,0.00016822,2]
[338580195,1726745453428,-151.0,0.00016886,2]
[338580196,1726745453439,-151.0,0.00016886,2]
[338580197,1726745453449,-180.948553,0.00016886,2]
[338580198,1726745453459,-151.0,0.00016886,2]
[338580199,1726745453473,-180.948553,0.00016886,2]
[338580200,1726745453482,-3229.684567,0.00016886,2]
[338580201,1726745453493,-3229.684567,0.00016886,2]
[338580202,1726745453503,-151.0,0.00016886,2]
[338580203,1726745453513,-195.264061,0.00016886,2]
[338580204,1726745453523,-910.872847,0.00016886,2]
[338580205,1726745453532,-910.872847,0.00016886,2]
[338580206,1726745453542,-183.357962,0.00016886,2]
[338580207,1726745453552,-183.357962,0.00016886,2]
[338580208,1726745453562,-2939.861116,0.00016886,2]
[338580209,1726745453571,-2939.861116,0.00016886,2]
[338580210,1726745453580,-384.644994,0.00016886,2]
[338580211,1726745453591,-384.644994,0.00016886,2]
[338580212,1726745453601,-9163.95445956,0.00016891,2]
[338580213,1726745453610,-853.264,0.00016973,2]
[338580214,1726745453619,-191.043,0.00016973,2]
[338580215,1726745453629,-47559.86609258,0.00016986,5]
[338580216,1726745453639,-265.837548,0.00016986,2]
[338580217,1726745453649,-265.837548,0.00016986,2]
[338580218,1726745453659,-151.0,0.00016986,2]
[338580219,1726745453669,-151.0,0.00016986,2]
[338580220,1726745453679,-153.710964,0.00016986,2]
[338580221,1726745453688,-153.710964,0.00016986,2]
[338580222,1726745453698,-153.710964,0.00016986,2]
[338580223,1726745453708,-153.710964,0.00016986,2]
[338580224,1726745453718,-151.0,0.00016986,2]
[338580225,1726745453728,-277.859428,0.00016986,2]
[338580226,1726745453738,-500.0,0.00016986,2]
[338580227,1726745453748,-151.0,0.00016986,2]
[338580228,1726745453757,-151.0,0.00016986,2]
[338580229,1726745453767,-500.0,0.00016986,2]
[338580230,1726745453777,-500.0,0.00016986,2]
[338580231,1726745453788,-500.0,0.00016986,2]
[338580232,1726745453798,-500.0,0.00016986,2]
[338580233,1726745453808,-500.0,0.00016986,2]
[338580234,1726745453818,-500.0,0.00016986,2]
[338580235,1726745453827,-500.0,0.00016986,2]
[338580236,1726745453837,-500.0,0.00016986,2]
[338580237,1726745453846,-500.0,0.00016986,2]
[338580238,1726745453856,-500.0,0.00016986,2]
[338580239,1726745453865,-1088.79,0.00016986,2]
[338580240,1726745453875,-500.0,0.00016986,2]
[338580241,1726745453884,-725.67,0.00016986,2]
[338580242,1726745453894,-1073.51,0.00016986,2]
[338580243,1726745453904,-528.91,0.00016986,2]
[338580244,1726745453914,-1314.26,0.00016986,2]
[338580245,1726745453923,-151.0,0.00016986,2]
[338580246,1726745453933,-1199.71,0.00016986,2]
[338580247,1726745453943,-562.94,0.00016986,2]
[338580248,1726745453953,-500.0,0.00016986,2]
[338580249,1726745453962,-500.0,0.00016986,2]
[338580250,1726745453972,-587.69,0.00016986,2]
[338580251,1726745453982,-1245.92,0.00016986,2]
[338580252,1726745453992,-500.0,0.00016986,2]
[338580253,1726745454001,-789.2,0.00016986,2]
[338580254,1726745454011,-468.51244069,0.00016986,2]
[338580255,1726745454020,-500.0,0.00016986,2]
[338580256,1726745454030,-791.12,0.00016986,2]
[338580257,1726745454040,-500.0,0.00016986,2]
[338580258,1726745454051,-500.0,0.00016986,2]
[338580259,1726745454062,-500.0,0.00016986,2]
[338580260,1726745454071,-500.0,0.00016986,2]
[338580261,1726745454081,-500.0,0.00016986,2]
[338580262,1726745454091,-200.0,0.00016986,2]
[338580263,1726745454100,-463.00825756,0.00016986,2]
[338580264,1726745454110,-1203.54,0.00016986,2]
[338580265,1726745454119,-500.0,0.00016986,2]
[338580266,1726745454129,-152.20976,0.00016986,2]
[338580267,1726745454138,-500.0,0.00016986,2]
[338580268,1726745454148,-152.20976,0.00016986,2]
[338580269,1726745454158,-500.0,0.00016986,2]
[338580270,1726745454167,-655.43,0.00016986,2]
[338580271,1726745454177,-500.0,0.00016986,2]
[338580272,1726745454186,-500.0,0.00016986,2]
[338580273,1726745454196,-537.5,0.00016986,2]
[338580274,1726745454206,-759.2,0.00016986,2]
[338580275,1726745454215,-593.71,0.00016986,2]
[338580276,1726745454225,-500.0,0.00016986,2]
[338580277,1726745454234,-500.0,0.00016986,2]
[338580278,1726745454244,-500.0,0.00016986,2]
[338580279,1726745454253,-804.91,0.00016986,2]
[338580280,1726745454264,-528.0,0.00016986,2]
[338580281,1726745454273,-500.0,0.00016986,2]
[338580282,1726745454283,-500.0,0.00016986,2]
[338580283,1726745454293,-618.91,0.00016986,2]
[338580284,1726745454302,-859.5,0.00016986,2]
[338580285,1726745454312,-500.0,0.00016986,2]
[338580286,1726745454322,-500.0,0.00016986,2]
[338580287,1726745454331,-500.0,0.00016986,2]
[338580288,1726745454341,-500.0,0.00016986,2]
[338580289,1726745454351,-1034.49,0.00016986,2]
[338580290,1726745454361,-500.0,0.00016986,2]
[338580291,1726745454371,-500.0,0.00016986,2]
[338580292,1726745454381,-151.0,0.00016986,2]
[338580293,1726745454390,-500.0,0.00016986,2]
[338580294,1726745454399,-500.0,0.00016986,2]
[338580295,1726745454409,-500.0,0.00016986,2]
[338580296,1726745454418,-500.0,0.00016986,2]
[338580297,1726745454429,-500.0,0.00016986,2]
[338580298,1726745454438,-500.0,0.00016986,2]
[338580299,1726745454449,-500.57178608,0.00016986,2]
[338580300,1726745454459,-151.0,0.00016986,2]
[338580301,1726745454472,-151.0,0.00016986,2]
[338580302,1726745454482,-500.0,0.00016986,2]
[338580303,1726745454491,-500.0,0.00016986,2]
[338580304,1726745454501,-151.0,0.00016986,2]
[338580305,1726745454511,-500.0,0.00016986,2]
[338580306,1726745454521,-206.737878,0.00016986,2]
[338580307,1726745454531,-650.08,0.00016986,2]
[338580308,1726745454593,-500.0,0.00016986,2]
[338580309,1726745454602,-500.0,0.00016986,2]
[338580310,1726745454612,-500.0,0.00016986,2]
[338580311,1726745454621,-1305.79,0.00016986,2]
[338580312,1726745454630,-500.0,0.00016986,2]
[338580313,1726745454639,-664.99,0.00016986,2]
[338580314,1726745454649,-500.0,0.00016986,2]
[338580315,1726745454659,-500.0,0.00016986,2]